bitfinex-derivatives/quotes_BTCF0:USTF0_20250913
["timestamp","ask_amount","ask_price","bid_price","bid_amount"]
[1757785431614,0.03749677,115600.0,115590.0,2.60095047]
[1757785432317,0.03749677,115600.0,115590.0,1.81143047]
[1757785432512,0.03749677,115600.0,115590.0,2.60095047]
[1757785433117,0.03749677,115600.0,115590.0,2.39730405]
[1757785433316,0.03749677,115600.0,115590.0,2.60091047]
[1757785433513,0.03749677,115600.0,115590.0,1.60782405]
[1757785433714,0.26282,115600.0,115590.0,2.49028321]
[1757785434416,0.36462321,115600.0,115590.0,1.70080321]
[1757785434617,0.26282,115600.0,115590.0,2.49028321]
[1757785435312,0.2875122,115600.0,115590.0,2.49028321]
[1757785435620,0.26282,115600.0,115590.0,2.49028321]
[1757785436323,0.28751306,115600.0,115590.0,2.49028321]
[1757785436522,0.28751306,115600.0,115590.0,2.49020321]
[1757785438523,0.28751306,115600.0,115590.0,2.22680321]
[1757785441631,0.28751306,115600.0,115590.0,2.22672321]
[1757785445136,0.26282,115600.0,115590.0,2.22672321]
[1757785445638,0.26282,115600.0,115590.0,1.86592321]
[1757785446438,0.26282,115600.0,115590.0,1.07660321]
[1757785446639,0.01282,115600.0,115590.0,1.86588321]
[1757785446836,0.01282,115600.0,115590.0,1.50508321]
[1757785447347,0.03755078,115600.0,115590.0,1.50508321]
[1757785447536,0.01282,115600.0,115590.0,1.50508321]
[1757785448744,0.0375503,115600.0,115590.0,1.50508321]
[1757785450542,0.0375503,115600.0,115590.0,1.86588321]
[1757785453046,0.03754932,115600.0,115590.0,1.86588321]
[1757785456535,0.03754932,115600.0,115590.0,1.07660321]
[1757785456735,0.03754932,115600.0,115590.0,1.86568321]
[1757785464354,0.03754932,115600.0,115590.0,1.86552321]
[1757785468354,0.03754932,115600.0,115590.0,1.86555592]
[1757785476757,0.03754932,115600.0,115590.0,1.86535592]
[1757785481061,0.03754932,115600.0,115590.0,1.76352]
[1757785481361,0.03754932,115600.0,115590.0,1.86535592]
[1757785484263,0.03754932,115600.0,115590.0,0.8126]
[1757785484264,0.77322524,115600.0,115590.0,0.8126]
[1757785484467,0.77322524,115600.0,115590.0,0.79256]
[1757785484966,0.80436868,115600.0,115590.0,0.79256]
[1757785485267,0.77322524,115600.0,115590.0,0.79256]
[1757785485561,0.77322524,115600.0,115590.0,0.79056]
[1757785485767,0.77322524,115600.0,115590.0,0.79156]
[1757785485967,0.77322524,115600.0,115590.0,0.78956]
[1757785486163,0.77322524,115600.0,115590.0,0.79056]
[1757785486969,0.77322524,115600.0,115590.0,0.79052]
[1757785488366,0.77322524,115600.0,115590.0,0.002]
[1757785488670,0.80436868,115600.0,115590.0,0.78952]
[1757785489068,0.80436868,115600.0,115590.0,0.78852]
[1757785489267,0.80436868,115600.0,115580.0,0.10183592]
[1757785489268,0.01334,115590.0,115580.0,0.10183592]
[1757785489465,0.39718,115590.0,115580.0,1.13035592]
[1757785489772,0.42190932,115590.0,115580.0,1.13035592]
[1757785490466,0.42190932,115590.0,115580.0,0.34183592]
[1757785490667,0.42190932,115590.0,115580.0,1.13035592]
[1757785491168,0.42258493,115590.0,115580.0,1.13035592]
[1757785491368,0.42258493,115590.0,115580.0,1.13135592]
[1757785491772,0.42258493,115590.0,115580.0,1.13235592]
[1757785491972,0.42258493,115590.0,115580.0,0.34383592]
[1757785492274,0.42258493,115590.0,115580.0,1.13231592]
[1757785492573,0.42258493,115590.0,115580.0,0.34383592]
[1757785492775,0.42258493,115590.0,115580.0,1.13231592]
[1757785495373,0.43131007,115590.0,115580.0,1.13231592]
[1757785498876,0.43131007,115590.0,115580.0,0.34383592]
[1757785499174,0.43131007,115590.0,115580.0,1.13223592]
[1757785499574,0.43131007,115590.0,115580.0,1.03036]
[1757785501276,0.43131007,115590.0,115580.0,0.242]
[1757785501473,0.53314599,115590.0,115580.0,1.03032]
[1757785501676,0.49925451,115590.0,115580.0,1.03032]
[1757785501976,0.49925451,115590.0,115580.0,0.242]
[1757785502178,0.49925451,115590.0,115580.0,1.03032]
[1757785502878,0.49925451,115590.0,115580.0,0.242]
[1757785503078,0.49925451,115590.0,115580.0,1.03032]
[1757785503271,0.49925451,115590.0,115580.0,0.242]
[1757785503472,0.49925451,115590.0,115580.0,1.03032]
[1757785504173,0.49052937,115590.0,115580.0,1.13215592]
[1757785505479,0.49052937,115590.0,115580.0,1.03032]
[1757785505681,0.49052937,115590.0,115580.0,1.13215592]
[1757785508883,0.49052937,115590.0,115580.0,1.13207592]
[1757785510887,0.49052937,115590.0,115580.0,1.03024]
[1757785511086,0.49052937,115590.0,115580.0,1.13207592]
[1757785511284,0.49052937,115590.0,115580.0,1.03024]
[1757785511487,0.49052937,115590.0,115580.0,1.13207592]
[1757785511686,0.12972937,115590.0,115580.0,1.13207592]
[1757785512187,0.12972937,115590.0,115580.0,1.03024]
[1757785512377,0.12972937,115590.0,115580.0,1.13207592]
[1757785512783,0.12972937,115590.0,115580.0,1.03024]
[1757785512983,0.12972937,115590.0,115580.0,1.13207592]
[1757785513590,0.16087281,115590.0,115580.0,1.13207592]
[1757785515290,0.16087281,115590.0,115580.0,1.04207592]
[1757785520492,0.16087281,115590.0,115580.0,0.94024]
[1757785520692,0.16087281,115590.0,115580.0,1.04207592]
[1757785523597,0.12972937,115590.0,115580.0,1.04207592]
[1757785528397,0.12972937,115590.0,115580.0,1.14396106]
[1757785529498,0.12972937,115590.0,115580.0,0.94024]
[1757785529699,0.12972937,115590.0,115580.0,1.14396106]
[1757785529898,0.49052937,115590.0,115580.0,1.14396106]
[1757785531795,0.49052937,115590.0,115580.0,0.99396106]
[1757785531999,0.12972937,115590.0,115580.0,1.02396106]
[1757785532597,0.12972937,115590.0,115580.0,1.15396106]
[1757785532798,0.12972937,115590.0,115580.0,1.13396106]
[1757785535400,0.2315899,115590.0,115580.0,1.13396106]
[1757785535902,0.2315899,115590.0,115580.0,0.34572106]
[1757785536102,0.2315899,115590.0,115580.0,1.13368106]
[1757785537404,0.12972937,115590.0,115580.0,1.03182053]
[1757785537604,0.2315899,115590.0,115580.0,1.03182053]
[1757785540622,0.2315899,115590.0,115580.0,0.92996]
[1757785540918,0.2315899,115590.0,115580.0,1.13368106]
[1757785542420,0.2315899,115590.0,115580.0,1.03182053]
[1757785546216,0.5923899,115590.0,115580.0,0.24386053]
[1757785546418,0.5923899,115590.0,115580.0,0.92984]
[1757785546717,0.5923899,115590.0,115580.0,0.142]
[1757785546918,0.87353334,115590.0,115580.0,0.142]
[1757785547222,0.87353334,115590.0,115580.0,0.78984]
[1757785547423,0.87353334,115590.0,115580.0,0.002]
[1757785547612,0.87353334,115590.0,115580.0,0.78984]
[1757785551924,0.87353334,115590.0,115580.0,0.7898]
[1757785552826,0.87367388,115590.0,115580.0,0.7898]
[1757785553626,0.92023708,115590.0,115580.0,0.7898]
[1757785557126,0.81837655,115590.0,115580.0,0.7898]
[1757785557529,0.92023708,115590.0,115580.0,0.7898]
[1757785560432,0.92023708,115590.0,115580.0,0.002]
[1757785560636,0.92023708,115590.0,115580.0,0.78972]
[1757785561530,0.92023708,115590.0,115580.0,0.002]
[1757785562132,0.88909364,115590.0,115580.0,0.002]
[1757785563835,0.8736577,115590.0,115580.0,0.002]
[1757785572045,0.77179717,115590.0,115580.0,0.002]
[1757785572344,0.8736577,115590.0,115580.0,0.10386053]
[1757785575248,0.8736577,115590.0,115580.0,0.002]
[1757785581453,0.9202209,115590.0,115580.0,0.002]
[1757785590456,0.920239,115590.0,115580.0,0.002]
[1757785591558,0.60229456,115590.0,115580.0,0.002]
[1757785591760,0.03888547,115590.0,115580.0,1.80710852]
[1757785591964,0.02554547,115590.0,115580.0,1.82419894]
[1757785592162,0.0302788,115600.0,115590.0,0.086465]
[1757785592464,0.05583961,115600.0,115590.0,1.97187726]
[1757785592666,0.05583961,115600.0,115590.0,2.22187726]
[1757785593062,0.05583961,115600.0,115590.0,2.30834226]
[1757785594966,0.05583961,115600.0,115590.0,2.31034226]
[1757785595869,0.0302788,115600.0,115590.0,2.31034226]
[1757785596167,0.0302788,115600.0,115590.0,2.31234226]
[1757785596374,0.0302788,115600.0,115590.0,2.22587726]
[1757785597476,0.0302788,115600.0,115590.0,2.31234226]
[1757785599378,0.0302788,115600.0,115590.0,2.06234226]
[1757785600079,0.0174588,115600.0,115590.0,2.06234226]
[1757785600285,0.0174588,115600.0,115590.0,1.27502226]
[1757785600477,0.0174588,115600.0,115590.0,2.06210226]
[1757785600676,0.0306988,115600.0,115590.0,2.06210226]
[1757785601685,0.0306988,115600.0,115590.0,2.32550226]
[1757785602485,0.0306988,115600.0,115590.0,1.45195726]
[1757785602685,0.0306988,115600.0,115590.0,2.23899726]
[1757785603582,0.05619837,115600.0,115590.0,2.23899726]
[1757785604487,0.05619837,115600.0,115590.0,1.45195726]
[1757785604700,0.05619837,115600.0,115590.0,2.23895726]
[1757785609285,0.03873957,115600.0,115590.0,2.31202226]
[1757785609486,0.01378,115610.0,115600.0,0.0864575]
[1757785609692,0.01378,115610.0,115600.0,1.15895918]
[1757785610890,0.01378,115610.0,115600.0,1.16095918]
[1757785611897,0.01378,115610.0,115600.0,1.07450168]
[1757785612095,0.01378,115610.0,115600.0,1.86138168]
[1757785612397,0.01378,115610.0,115600.0,1.07450168]
[1757785612799,0.01378,115610.0,115600.0,1.86134168]
[1757785613199,0.01378,115610.0,115600.0,1.07450168]
[1757785613802,0.01378,115610.0,115600.0,1.86130168]
[1757785615099,0.01378,115610.0,115600.0,1.07450168]
[1757785616005,0.01378,115610.0,115600.0,1.86126168]
[1757785619409,0.01378,115610.0,115600.0,2.12466168]
[1757785621408,0.03917626,115610.0,115600.0,2.12466168]
[1757785628502,0.01378,115610.0,115600.0,2.12466168]
[1757785643618,0.03917352,115610.0,115600.0,2.12466168]
[1757785644216,0.03917352,115610.0,115600.0,2.21111918]
[1757785648725,0.03917352,115610.0,115600.0,1.42435918]
[1757785649224,0.03917352,115610.0,115600.0,2.31263781]
[1757785649424,0.03917352,115610.0,115600.0,2.56263781]
[1757785649825,0.03917352,115610.0,115600.0,1.77623781]
[1757785650123,0.03917352,115610.0,115600.0,2.56263781]
[1757785650425,0.01378,115610.0,115600.0,2.66417606]
[1757785652026,0.01378,115610.0,115600.0,4.32509606]
[1757785652533,0.01378,115610.0,115600.0,3.53869606]
[1757785652824,0.01378,115610.0,115600.0,4.32505606]
[1757785653025,0.01378,115610.0,115600.0,3.96425606]
[1757785653325,0.01378,115610.0,115600.0,4.68585606]
[1757785659227,0.01378,115610.0,115600.0,4.68577606]
[1757785659431,0.01378,115610.0,115600.0,4.43577606]
[1757785667135,0.01378,115610.0,115600.0,4.43569606]
[1757785667735,0.01378,115610.0,115600.0,3.56303856]
[1757785667936,0.01378,115610.0,115600.0,4.34919856]
[1757785671139,0.01378,115610.0,115600.0,4.43565606]
[1757785671334,0.01378,115610.0,115600.0,2.77473606]
[1757785671638,0.01378,115610.0,115600.0,1.98857606]
[1757785671839,0.01378,115610.0,115600.0,2.77469606]
[1757785672835,0.01378,115620.0,115600.0,2.77469606]
[1757785672836,0.01378,115620.0,115600.0,2.51129606]
[1757785673037,0.01324,115630.0,115620.0,0.10176517]
[1757785673038,0.01322,115630.0,115620.0,0.10176517]
[1757785673230,0.01322,115630.0,115620.0,1.82842212]
[1757785673627,0.01322,115630.0,115620.0,2.03195246]
[1757785675137,0.01322,115630.0,115620.0,2.10218878]
[1757785675439,0.01422,115630.0,115620.0,2.10218878]
[1757785677236,0.01422,115630.0,115620.0,2.18863128]
[1757785678140,0.01422,115630.0,115620.0,2.197426]
[1757785678632,0.01422,115630.0,115620.0,2.460826]
[1757785680436,0.01422,115630.0,115620.0,2.197426]
[1757785681837,0.01422,115630.0,115620.0,2.1109835]
[1757785683839,0.01422,115630.0,115620.0,2.197426]
[1757785684039,0.01422,115630.0,115620.0,2.1109835]
[1757785692644,0.01422,115630.0,115620.0,1.3248635]
[1757785692946,0.01422,115630.0,115620.0,2.1107035]
[1757785693450,0.01422,115630.0,115620.0,1.3248635]
[1757785693744,0.01422,115630.0,115620.0,2.1107035]
[1757785694440,0.01422,115630.0,115620.0,1.3248635]
[1757785694639,0.01422,115630.0,115620.0,2.1107035]
[1757785699048,0.01422,115630.0,115620.0,1.3248635]
[1757785699249,0.26422,115630.0,115620.0,2.00885833]
[1757785699551,0.28961965,115630.0,115620.0,2.00885833]
[1757785699949,0.28961965,115630.0,115620.0,1.01077327]
[1757785700150,0.28961965,115630.0,115620.0,2.00006361]
[1757785702554,0.28961965,115630.0,115620.0,2.00864569]
[1757785703648,0.26422,115630.0,115620.0,2.00864569]
[1757785710362,0.26422,115630.0,115620.0,1.90689511]
[1757785716071,0.26422,115630.0,115620.0,2.00867487]
[1757785719269,0.01422,115630.0,115620.0,2.00867487]
[1757785722071,0.01422,115630.0,115620.0,1.22291487]
[1757785722277,0.01422,115630.0,115620.0,2.00851487]
[1757785723884,0.03962408,115630.0,115620.0,2.00851487]
[1757785731083,0.03964604,115630.0,115620.0,2.00851487]
[1757785735380,0.03964604,115630.0,115620.0,2.25851487]
[1757785736287,0.03964604,115630.0,115620.0,2.61931487]
[1757785742992,0.03964604,115630.0,115620.0,1.83371487]
[1757785743192,0.03964604,115630.0,115620.0,2.61915487]
[1757785743893,0.01422,115630.0,115620.0,2.61915487]
[1757785749702,0.03964613,115630.0,115620.0,2.61915487]
[1757785761325,0.03964613,115630.0,115620.0,1.83371487]
[1757785761620,0.03964613,115630.0,115620.0,2.61907487]
[1757785772425,0.03964613,115630.0,115620.0,2.72075728]
[1757785779424,0.03964613,115630.0,115620.0,2.47075728]
[1757785780325,0.03964613,115630.0,115620.0,1.68539728]
[1757785780530,0.03964613,115630.0,115620.0,2.47063728]
[1757785788438,0.03964613,115630.0,115620.0,2.73403728]
[1757785793446,0.03964613,115630.0,115620.0,2.73465998]
[1757785793750,0.01422,115630.0,115620.0,2.73465998]
[1757785803858,0.01422,115630.0,115620.0,2.7341721]
[1757785807566,0.01422,115630.0,115620.0,2.73429832]
[1757785823674,0.03956673,115630.0,115620.0,2.73429832]
[1757785833874,0.01422,115630.0,115620.0,2.73429832]
[1757785834377,0.01422,115630.0,115620.0,2.63254293]
[1757785835980,0.01422,115630.0,115620.0,2.36914293]
[1757785847179,0.01295,115640.0,115620.0,2.8207314]
[1757785847392,0.01295,115640.0,115630.0,0.8904678]
[1757785847591,0.01295,115640.0,115630.0,1.4604678]
[1757785848390,0.01395,115640.0,115630.0,1.4604678]
[1757785848695,0.01495,115640.0,115630.0,1.4604678]
[1757785849796,0.01395,115640.0,115630.0,1.4604678]
[1757785849998,0.01495,115640.0,115630.0,1.4604678]
[1757785866218,0.01495,115640.0,115630.0,1.35872453]
[1757785866521,0.01495,115640.0,115630.0,2.14360453]
[1757785866722,0.01495,115640.0,115630.0,2.04186126]
[1757785866914,0.01495,115640.0,115630.0,2.14360453]
[1757785870814,0.01495,115640.0,115630.0,2.14464453]
[1757785872418,0.01495,115640.0,115630.0,2.2463878]
[1757785873719,0.04023963,115640.0,115630.0,2.2463878]
[1757785874316,0.04023963,115640.0,115630.0,2.2462278]
[1757785874521,0.04023963,115640.0,115630.0,2.14448453]
[1757785877326,0.04023963,115640.0,115630.0,2.2462278]
[1757785878429,0.29023963,115640.0,115630.0,1.25698126]
[1757785878634,0.3303095,115640.0,115630.0,1.03254327]
[1757785878934,0.3303095,115640.0,115630.0,1.81798327]
[1757785879134,0.3303095,115640.0,115630.0,1.71624]
[1757785879328,0.3303095,115640.0,115630.0,1.81798327]
[1757785888341,0.30501987,115640.0,115630.0,1.81798327]
[1757785889136,0.30501987,115640.0,115630.0,1.71624]
[1757785889331,0.30501987,115640.0,115630.0,1.81798327]
[1757785889842,0.30501987,115640.0,115630.0,1.71624]
[1757785890045,0.30501987,115640.0,115630.0,1.81798327]
[1757785893748,0.33030814,115640.0,115630.0,1.81798327]
[1757785894350,0.33030814,115640.0,115630.0,1.91974458]
[1757785898048,0.33030814,115640.0,115630.0,1.71624]
[1757785898241,0.33030814,115640.0,115630.0,1.91974458]
[1757785898548,0.33030814,115640.0,115630.0,1.71624]
[1757785898752,0.33030814,115640.0,115630.0,1.91974458]
[1757785899252,0.08030814,115640.0,115630.0,1.91974458]
[1757785899751,0.08030814,115640.0,115630.0,1.13430458]
[1757785899951,0.08030814,115640.0,115630.0,1.91934458]
[1757785906347,0.08030814,115640.0,115630.0,1.71584]
[1757785906549,0.08030814,115640.0,115630.0,1.91934458]
[1757785908659,0.08030814,115640.0,115630.0,1.13430458]
[1757785908954,0.08030814,115640.0,115630.0,1.91926458]
[1757785916566,0.08030814,115640.0,115630.0,1.91922458]
[1757785917466,0.08030814,115640.0,115630.0,1.55842458]
[1757785918262,0.08030814,115640.0,115630.0,1.35492]
[1757785918466,0.08030814,115640.0,115630.0,1.55842458]
[1757785922865,0.08030814,115640.0,115630.0,0.67175229]
[1757785923067,0.43206043,115640.0,115630.0,1.12667229]
[1757785923268,0.33030814,115640.0,115630.0,1.12667229]
[1757785923870,0.69110814,115640.0,115630.0,1.12667229]
[1757785924370,0.69110814,115640.0,115630.0,1.02492]
[1757785924572,0.69110814,115640.0,115630.0,1.12667229]
[1757785924872,0.7222354,115640.0,115630.0,1.12667229]
[1757785929174,0.7222354,115640.0,115630.0,1.02492]
[1757785929469,0.7222354,115640.0,115630.0,1.12667229]
[1757785929678,0.7311076,115640.0,115630.0,1.12667229]
[1757785929869,0.7311076,115640.0,115630.0,1.02492]
[1757785930070,0.7222354,115640.0,115630.0,1.12667229]
[1757785931375,0.7222354,115640.0,115630.0,1.52842458]
[1757785932275,0.3614354,115640.0,115630.0,1.52842458]
[1757785933782,0.33030814,115640.0,115630.0,1.52842458]
[1757785934375,0.33030814,115640.0,115630.0,1.32492]
[1757785934680,0.33030814,115640.0,115630.0,1.52842458]
[1757785937384,0.33030814,115640.0,115630.0,1.42667229]
[1757785952095,0.33030814,115640.0,115630.0,1.52842458]
[1757785952798,0.08030814,115640.0,115630.0,1.52842458]
[1757785953298,0.08030814,115640.0,115630.0,1.88922458]
[1757785956394,0.08030814,115640.0,115630.0,1.78746795]
[1757785963797,0.1114354,115640.0,115630.0,1.78746795]
[1757785964001,0.1114354,115640.0,115630.0,1.42666795]
[1757785964203,0.1114354,115640.0,115630.0,1.78746795]
[1757785966505,0.1114354,115640.0,115630.0,1.68572]
[1757785966706,0.1114354,115640.0,115630.0,1.78746795]
[1757785968097,0.1114354,115640.0,115630.0,1.78742795]
[1757785973812,0.08030814,115640.0,115630.0,1.78742795]
[1757786000831,0.06278827,115640.0,115630.0,1.78742795]
[1757786005936,0.06351926,115640.0,115630.0,1.78742795]
[1757786013747,0.06351973,115640.0,115630.0,1.78742795]
[1757786014046,0.09464699,115640.0,115630.0,1.78742795]
[1757786014444,0.06351973,115640.0,115630.0,1.78742795]
[1757786018347,0.06351973,115640.0,115630.0,1.88918606]
[1757786021351,0.06351973,115640.0,115630.0,1.10430606]
[1757786021551,0.06351973,115640.0,115630.0,1.88890606]
[1757786022152,0.06351973,115640.0,115630.0,1.10430606]
[1757786022355,0.06351973,115640.0,115630.0,1.88890606]
[1757786031047,0.04096973,115640.0,115630.0,1.10430606]
[1757786031251,0.04096973,115640.0,115630.0,1.88882606]
[1757786037859,0.04096973,115640.0,115630.0,1.68532]
[1757786038164,0.04096973,115640.0,115630.0,1.10430606]
[1757786038664,0.04096973,115640.0,115630.0,1.88950606]
[1757786039766,0.04096973,115640.0,115630.0,0.9008]
[1757786039956,0.04096973,115640.0,115630.0,1.88974606]
[1757786040467,0.04096973,115640.0,115630.0,1.10430606]
[1757786040660,0.04096973,115640.0,115630.0,1.88974606]
[1757786042765,0.04096973,115640.0,115630.0,1.10430606]
[1757786042966,0.04096973,115640.0,115630.0,1.89086606]
[1757786048370,0.04096973,115640.0,115630.0,1.91140564]
[1757786060779,0.07209699,115640.0,115630.0,1.91140564]
[1757786061582,0.04096973,115640.0,115630.0,1.91140564]
[1757786061782,0.07209699,115640.0,115630.0,1.91140564]
[1757786063784,0.04096973,115640.0,115630.0,1.91140564]
[1757786064575,0.04096973,115640.0,115630.0,1.91064564]
[1757786064784,0.04096973,115640.0,115630.0,1.12484564]
[1757786064985,0.04096973,115640.0,115630.0,1.91060564]
[1757786065177,0.04096973,115640.0,115630.0,1.12484564]
[1757786065383,0.04096973,115640.0,115630.0,1.91056564]
[1757786074696,0.04096973,115640.0,115630.0,1.12484564]
[1757786074894,0.04096973,115640.0,115630.0,1.91008564]
[1757786078508,0.04096973,115640.0,115630.0,1.80834414]
[1757786082510,0.04096973,115640.0,115630.0,1.70657958]
[1757786082816,0.04096973,115640.0,115630.0,1.80834414]
[1757786084111,0.04096973,115640.0,115630.0,1.02310414]
[1757786084311,0.06264973,115640.0,115630.0,0.90742414]
[1757786084615,0.06264973,115640.0,115630.0,1.26742414]
[1757786087319,0.06264973,115640.0,115630.0,1.26726414]
[1757786087618,0.06264973,115640.0,115630.0,0.48230414]
[1757786087815,0.06264973,115640.0,115630.0,1.26722414]
[1757786088818,0.06264973,115640.0,115630.0,1.16545958]
[1757786089020,0.06264973,115640.0,115630.0,1.26722414]
[1757786103829,0.09377699,115640.0,115630.0,1.26722414]
[1757786113932,0.06264973,115640.0,115630.0,1.26722414]
[1757786118147,0.06264973,115640.0,115630.0,1.16545958]
[1757786118444,0.06264973,115640.0,115630.0,1.26722414]
[1757786120747,0.06264973,115640.0,115630.0,0.48230414]
[1757786120946,0.06264973,115640.0,115630.0,1.26694414]
[1757786126151,0.06264973,115640.0,115630.0,1.16517958]
[1757786126351,0.06264973,115640.0,115630.0,1.26694414]
[1757786131954,0.06264973,115640.0,115630.0,1.16517958]
[1757786132155,0.06264973,115640.0,115630.0,1.26694414]
[1757786132955,0.06264973,115640.0,115630.0,0.48230414]
[1757786133255,0.06264973,115640.0,115630.0,1.26694414]
[1757786133457,0.06264973,115640.0,115630.0,1.16517958]
[1757786133754,0.06264973,115640.0,115630.0,1.26694414]
[1757786133950,0.06264973,115640.0,115630.0,0.48230414]
[1757786134153,0.06264973,115640.0,115630.0,1.26694414]
[1757786138465,0.06264973,115640.0,115630.0,1.26695407]
[1757786140662,0.06264973,115640.0,115630.0,0.48231407]
[1757786140958,0.06264973,115640.0,115630.0,1.26691407]
[1757786142572,0.04096973,115640.0,115630.0,1.72948856]
[1757786154978,0.06355973,115640.0,115630.0,1.72940856]
[1757786157672,0.04096973,115640.0,115630.0,1.72940856]
[1757786168491,0.01495,115640.0,115630.0,1.72940856]
[1757786170088,0.01495,115640.0,115630.0,1.52585958]
[1757786170288,0.01495,115640.0,115630.0,1.72940856]
[1757786170992,0.01495,115640.0,115630.0,1.72863007]
[1757786171192,0.16532189,115640.0,115630.0,0.37976109]
[1757786171496,0.16532189,115640.0,115630.0,1.24621449]
[1757786172197,0.0635474,115640.0,115630.0,1.24621449]
[1757786172388,0.0635474,115640.0,115630.0,1.14444]
[1757786172588,0.0635474,115640.0,115630.0,1.24621449]
[1757786178302,0.0635474,115640.0,115630.0,1.14444]
[1757786178495,0.0635474,115640.0,115630.0,1.24621449]
[1757786179396,0.0635474,115640.0,115630.0,0.46177449]
[1757786179603,0.0635474,115640.0,115630.0,1.24621449]
[1757786179797,0.16532189,115640.0,115630.0,1.24621449]
[1757786179994,0.0635474,115640.0,115630.0,1.24621449]
[1757786180299,0.16532189,115640.0,115630.0,1.24621449]
[1757786180699,0.0635474,115640.0,115630.0,1.24621449]
[1757786183004,0.16532189,115640.0,115630.0,1.24621449]
[1757786184596,0.16532189,115640.0,115630.0,1.14444]
[1757786184898,0.0635474,115640.0,115630.0,1.24621449]
[1757786185100,0.16532189,115640.0,115630.0,1.24621449]
[1757786186597,0.16532189,115640.0,115630.0,0.46177449]
[1757786186797,0.16532189,115640.0,115630.0,1.24617449]
[1757786189906,0.16532189,115640.0,115630.0,1.1444]
[1757786190112,0.16532189,115640.0,115630.0,1.24617449]
[1757786190602,0.0635474,115640.0,115630.0,1.24617449]
[1757786190904,0.16532189,115640.0,115630.0,1.24617449]
[1757786192508,0.16532189,115640.0,115630.0,0.46177449]
[1757786192805,0.16532189,115640.0,115630.0,1.24617449]
[1757786199103,0.16532189,115640.0,115630.0,1.1444]
[1757786199308,0.16532189,115640.0,115630.0,1.24617449]
[1757786199710,0.16532189,115640.0,115630.0,1.24613449]
[1757786200411,0.0635474,115640.0,115630.0,1.24613687]
[1757786207526,0.0635474,115640.0,115630.0,0.46177687]
[1757786207722,0.0635474,115640.0,115630.0,1.24613687]
[1757786209020,0.0635474,115640.0,115630.0,1.14436]
[1757786209220,0.0635474,115640.0,115630.0,1.24613687]
[1757786210827,0.0635474,115640.0,115630.0,1.14436]
[1757786211029,0.0635474,115640.0,115630.0,1.24613687]
[1757786213025,0.0635474,115640.0,115630.0,1.14436]
[1757786213425,0.0635474,115640.0,115630.0,1.24613687]
[1757786214830,0.0635474,115640.0,115630.0,1.14436]
[1757786215032,0.0635474,115640.0,115630.0,1.24613687]
[1757786215733,0.0635474,115640.0,115630.0,1.14436]
[1757786215932,0.0635474,115640.0,115630.0,1.24613687]
[1757786216125,0.0635474,115640.0,115630.0,1.14436]
[1757786216321,0.0635474,115640.0,115630.0,1.24613687]
[1757786217135,0.0635474,115640.0,115630.0,1.14436]
[1757786217335,0.0635474,115640.0,115630.0,1.24613687]
[1757786218139,0.0635474,115640.0,115630.0,1.14436]
[1757786218434,0.0635474,115640.0,115630.0,1.24613687]
[1757786218623,0.0635474,115640.0,115630.0,1.14436]
[1757786218830,0.0635474,115640.0,115630.0,1.24613687]
[1757786219338,0.03754,115640.0,115630.0,1.14436]
[1757786219537,0.03754,115640.0,115630.0,1.24613687]
[1757786220047,0.06405466,115640.0,115630.0,1.24605687]
[1757786220338,0.06405466,115640.0,115630.0,0.36]
[1757786220537,0.03754,115640.0,115630.0,1.24605687]
[1757786222234,0.06405468,115640.0,115630.0,1.24605687]
[1757786222939,0.06405468,115640.0,115630.0,0.46177687]
[1757786223141,0.06405468,115640.0,115630.0,1.24605687]
[1757786223641,0.16583155,115640.0,115620.0,0.55302449]
[1757786223831,0.03588,115630.0,115620.0,1.04124762]
[1757786224033,0.06239468,115630.0,115620.0,1.07278817]
[1757786224235,0.06239468,115630.0,115620.0,1.7552913]
[1757786224433,0.06239468,115630.0,115620.0,1.07278817]
[1757786224635,0.06239468,115630.0,115620.0,1.85706817]
[1757786225739,0.06239468,115630.0,115620.0,1.07278817]
[1757786225940,0.06239468,115630.0,115620.0,1.85706817]
[1757786231745,0.04040468,115630.0,115620.0,1.85706817]
[1757786232445,0.04040468,115630.0,115620.0,1.95884504]
[1757786240049,0.04040468,115630.0,115620.0,1.59804504]
[1757786240347,0.04040468,115630.0,115620.0,1.95884504]
[1757786243560,0.04040468,115630.0,115620.0,1.7552913]
[1757786243856,0.04040468,115630.0,115620.0,1.95884504]
[1757786262381,0.04040468,115630.0,115620.0,1.95883742]
[1757786266986,0.04040468,115630.0,115620.0,1.17455742]
[1757786267186,0.04040468,115630.0,115620.0,1.95883742]
[1757786268086,0.04040468,115630.0,115620.0,1.7552913]
[1757786268281,0.04040468,115630.0,115620.0,1.95883742]
[1757786268888,0.04040468,115630.0,115620.0,1.7552913]
[1757786269085,0.04040468,115630.0,115620.0,1.95883742]
[1757786274782,0.04040468,115630.0,115620.0,1.7552913]
[1757786274978,0.04040468,115630.0,115620.0,1.95883742]
[1757786281992,0.04040468,115630.0,115620.0,1.7552913]
[1757786282293,0.04040468,115630.0,115620.0,1.95883742]
[1757786285897,0.04040468,115630.0,115620.0,1.17455742]
[1757786286085,0.04040468,115630.0,115620.0,1.95931742]
[1757786288301,0.04040468,115630.0,115620.0,1.7557713]
[1757786288504,0.04040468,115630.0,115620.0,1.95915742]
[1757786289901,0.04040468,115630.0,115620.0,1.95927742]
[1757786293404,0.04040468,115630.0,115620.0,1.95934112]
[1757786297511,0.04040468,115630.0,115620.0,1.17462112]
[1757786297807,0.04040468,115630.0,115620.0,1.95898112]
[1757786298010,0.04040468,115630.0,115620.0,1.755435]
[1757786298213,0.04040468,115630.0,115620.0,1.95898112]
[1757786298913,0.04040468,115630.0,115620.0,1.755435]
[1757786299114,0.04040468,115630.0,115620.0,1.95898112]
[1757786301612,0.04040468,115630.0,115620.0,1.755435]
[1757786301818,0.04040468,115630.0,115620.0,1.95898112]
[1757786324443,0.04040468,115630.0,115620.0,1.85721562]
[1757786325043,0.04050597,115630.0,115620.0,1.85721562]
[1757786329548,0.04050597,115630.0,115620.0,1.07285562]
[1757786329749,0.04050597,115630.0,115620.0,1.85705562]
[1757786345765,0.04050597,115630.0,115620.0,1.755275]
[1757786345965,0.04050597,115630.0,115620.0,1.85705562]
[1757786352068,0.04050597,115630.0,115620.0,1.07285562]
[1757786352265,0.04050597,115630.0,115620.0,1.85701562]
[1757786366582,0.04050597,115630.0,115620.0,1.755235]
[1757786366878,0.04050597,115630.0,115620.0,1.85701562]
[1757786370183,0.04050597,115630.0,115620.0,1.755235]
[1757786370482,0.04050597,115630.0,115620.0,1.85701562]
[1757786371485,0.04050597,115630.0,115620.0,1.755235]
[1757786371686,0.04050597,115630.0,115620.0,1.85701562]
[1757786381390,0.04050597,115630.0,115620.0,1.755235]
[1757786381689,0.04050597,115630.0,115620.0,1.85701562]
[1757786384588,0.04050597,115630.0,115620.0,1.9587959]
[1757786386889,0.04050597,115630.0,115620.0,1.5979959]